{"text_format":"1","workbook":"xlsx","n_sheets":5,"sheets":["Sheet1","Sheet2","حركة الشيكات ","تسجيل اسماء","الشيك"],"not_rendered":{"charts":0,"images":4,"macros":1,"external_links":0,"defined_names":10,"comments":0,"pivot_tables":0},"unopened":[],"bounds":{"document_bytes":16777216,"sheet_cells":100000,"rows_first":2000,"rows_last":500,"rows_between":2000,"halvings":0,"cell_chars":16384,"cell_head_chars":4096},"cells_cut":0,"cells_raw":0,"read":"whole","date_system":"1900"}

{"sheet":"Sheet1","index":0,"n_rows":59,"n_cols":9,"rows_kept":59,"cut":false,"hidden":false,"merged":[[19,1,19,3],[26,1,27,1],[21,1,21,2],[24,1,24,3],[23,1,23,2],[31,0,32,1],[31,2,32,2],[28,0,29,0],[28,2,29,2],[28,3,29,3],[11,1,11,3],[13,1,13,3],[14,1,14,3],[15,0,16,0],[15,1,16,3],[0,8,1,8],[0,0,1,0],[0,1,1,1],[0,5,0,6],[0,4,1,4],[0,7,1,7],[38,1,38,3],[40,1,40,3],[41,1,41,3],[42,0,43,0],[42,1,43,3],[46,1,46,3],[48,1,48,2],[50,1,50,2],[51,1,51,3],[53,1,54,1],[55,0,56,0],[55,2,56,2],[55,3,56,3],[58,0,59,1],[58,2,59,2]]}
["مسلسل","تاريخ الاستحقاق"," اسم المستفيد","البيان ","القيمة قبل الضرائب "," ( يخصــــــــــــم )",null,"صافي مبلغ الشيك ","العملة"]
[null,null,"شركات","م",null," دفعات تحت الحساب ","(ض0أ0ت0ص)علي مبلغ"]
[4,"2019-02-12","",null,null,null,null,{"$f":"A25","v":0}]
[null,null,null,null,null,null,5.0000000000000001E-3]
["احمد"]
["محمد",null,null,"م"]
["وذلك طبقا للبيان التالي : "]
["سي"]
["محمد"]
["محمد"]
["محمد",{"$f":"B3","v":"2019-02-12"},null,"اذن صرف شيكات"]
["محمد",{"$f":"C3","v":""}]
["وذلك طبقا للبيان التالي : "]
["              القيمة              Value","البيـــــــــــان "]
[{"$f":"I3","v":"00:00:00"},"Description"]
[{"$f":"E3","v":0},{"$f":"D3","v":0}]
[]
[]
[]
[null,"((طبقأً للمرفق ))"]
[{"$f":"A16","v":0}]
[null,{"$f":"IF(F3+G3>0,F1,\"\")","v":""}]
[{"$f":"-F3","v":0},{"$f":"IF(F3>0,F2,\"\")","v":""}]
[{"$f":"-G4*G3","v":0},{"$f":"IF(G3>0,G4&G2&G3,\"\")","v":""}]
[{"$f":"SUM(A21:A24)","v":0},{"$f":"tafket(A25,I3,\"/ 100\")","v":"صفر"}]
[]
[null,"يعتـــــمــــــــد"]
[]
["استلمت انا   ",null,"بطاقة رقم","الشيك رقم "]
[]
["بتاريخ     /     /    201  المســــــحوب  علي  البنــــــك  المصـــري  الخليـــجي  فرع  الجيـــــــــــــــــــــزة"]
["وهذا ايصـــــــال مني بذلك",null,"المــستـــلم"]
[]
[]
["شركة كاتو للاستثمار"]
["(ش 0 م . م)"]
[]
["القــــاهرة في        :",{"$f":"B11","v":"2019-02-12"},null,"اذن صرف شيكات"]
["يصــــــرف الي      :",{"$f":"B12","v":""}]
["وذلك طبقا للبيان التالي : "]
["              القيمة              Value","البيـــــــــــان "]
[{"$f":"A15","v":"00:00:00"},"Description"]
[{"$f":"A16","v":0},{"$f":"B16","v":0}]
[]
[]
[]
[null,"((طبقأً للمرفق ))"]
[{"$f":"A43","v":0}]
[null,{"$f":"B22","v":""}]
[{"$f":"A23","v":0},{"$f":"B23","v":""}]
[{"$f":"A24","v":0},{"$f":"B24","v":""}]
[{"$f":"SUM(A48:A51)","v":0},{"$f":"tafket(A52,I32,\"/ 100\")","v":"صفر"}]
[]
[null,"يعتـــــمــــــــد"]
[]
["استلمت انا   ",null,"بطاقة رقم","الشيك رقم "]
[]
["بتاريخ     /     /    201  المســــــحوب  علي  البنــــــك  المصـــري  الخليـــجي  فرع  الجيـــــــــــــــــــــزة"]
["وهذا ايصـــــــال مني بذلك",null,"المــستـــلم"]

{"sheet":"Sheet2","index":1,"n_rows":0,"n_cols":0,"rows_kept":0,"cut":false,"hidden":false,"merged":[]}

{"sheet":"حركة الشيكات ","index":2,"n_rows":5,"n_cols":9,"rows_kept":5,"cut":false,"hidden":false,"merged":[]}
["مسلسل","تاريخ استحقاق الشيك","اسم المستفيد","البيان","القيمة قبل اضرائب","يخصم دفعات مقدمة","ضرائب مخصومة","صافي مبلغ الشيك","العملة"]
[1,"2019-02-12","السادة / شركة  اى دى اس","سداد فواتير صيانة",220,22,220,"1900-07-14T21:36:00","جنيـــــة"]
[1,"2019-02-12","السادة / شركة  اى دى اس","سداد فواتير صيانة",220,22,220,"1900-07-14T21:36:00","جنيـــــة"]
[1,"2019-02-12","السادة / شركة  اى دى اس","سداد فواتير صيانة",220,22,220,"1900-07-14T21:36:00","جنيـــــة"]
[3,"2019-02-12","السادة / شركة  اى دى اس","السادة / شركة  اى دى اس",10,1,4,"1900-01-08T23:31:12","جنيـة"]

{"sheet":"تسجيل اسماء","index":3,"n_rows":6,"n_cols":18,"rows_kept":6,"cut":false,"hidden":false,"merged":[]}
["اشخاص","شركات","عملاء","موردين","مصالح","مكاتب",null,null,"تسجيل بيانات البيان هنا",null,null,null,null,null,null,"العملة ","التاريخ","ناقصاً (ض0أ0ت0ص)"]
["السيد/ تامر محمد ابوالسعود","السادة / الشركة الدولية للمطارات",null,"السادة / فندق الفورسيزون","الهيئة القومية للتامينات الاجتماعية","السيد / اشرف شعبان",null,null,"مصروفات ","مرتبات ","عملاء","موردين","مصالح","مكاتب",null,"جنيـة",{"$f":"TODAY()","v":"2019-02-17"}]
["السيد / محمد عبد المنعم الجمل","السادة / شركة  اى دى اس",null,null,"السادة / مامورية ضرائب الاستثمار","الدكتور / رفيق محمد حسن الجزيرى",null,null,"م . صيانة لماكينة التصوير ","مرتبات القاهرة للنقل الجوي عن شهر ","مصروفات ادارية باحمد نسيم",null,null,null,null,"دولار",null,5.0000000000000001E-3]
["السيد / ايمن حامد حنفى","السادة / شركة كيو الدولية",null,null,null,null,null,null,null,null,null,null,null,null,null,"يورو",null,0.02]
["السيد / احمد سعبد غنيم","السادة / شركة انتراكونسلت تيليكوم"]
["السيد / محى الدين خليل مهدى نوح","السادة / شركة انترناشيونال جينزين تريدينج"]

{"sheet":"الشيك","index":4,"n_rows":11,"n_cols":11,"rows_kept":11,"cut":false,"hidden":false,"merged":[[0,4,1,8],[10,4,11,12],[5,5,6,29],[8,10,9,11],[8,4,9,9],[3,8,4,29]]}
[null,null,null,null,{"$f":"Sheet1!B3","v":"2019-02-12"}]
[]
[]
[null,null,null,null,null,null,null,null,{"$f":"Sheet1!C3","v":""}]
[]
[null,null,null,null,null,{"$f":"tafket(E9,K9,\"/ 100\")","v":"صفر"}]
[]
[]
[null,null,null,null,{"$f":"Sheet1!H3","v":0},null,null,null,null,null,{"$f":"Sheet1!I3","v":0}]
[]
[null,null,null,null,"ا / محمد ابراهيم كامل"]